{"text_format":"3","workbook":"xlsx","n_sheets":1,"sheets":["VOORRAADLIJST APPARATUUR"],"not_rendered":{"defined_names":5},"read":"whole","date_system":"1900"}

{"sheet":"VOORRAADLIJST APPARATUUR","index":0,"n_rows":9,"n_cols":19,"rows_kept":9,"merged":[[0,1,0,5],[0,6,0,9],[0,10,0,12],[0,13,0,14],[2,1,2,6],[2,7,2,18]]}
[null,"VOORRAADLIJST APPARATUUR"]
[]
[null,"FYSIEKE STAAT",{"$nulls":5},"FINANCIEEL OVERZICHT"]
[null,"Activum- of serienummer","Itembeschrijving (versie en model)","Locatie","Staat","Leverancier","Resterende levensduur ","Aanvankelijke waarde","Aanbetaling","Datum gekocht of geleased","Leentermijn \nin jaren","Leningstarief","Maandelijkse betaling","Maandelijkse bedrijfskosten","Totale maandelijkse kosten","Verwachte waarde aan eind van leentermijn","Jaarlijkse vaste afschrijving","Maandelijkse vaste afschrijving","Huidige waarde"]
[null,123,"Versie Model","Hoofdfiliaal","Goed","lokaal",5,{"v":30000,"d":"€ 30,000.00"},{"v":5000,"d":"€ 5,000.00"},{"$f":"DATE(YEAR(TODAY())-2, 1,1)","v":"2016-01-01"},4,{"v":0.1,"d":"10.00%"},{"$f":"IFERROR(IF(AND(Gegevens[[#This Row],[Aanvankelijke waarde]]>0,Gegevens[[#This Row],[Aanvankelijke waarde]]<>Gegevens[[#This Row],[Aanbetaling]]),-1*PMT(Gegevens[[#This Row],[Leningstarief]]/12,Gegevens[[#This Row],[Leentermijn \nin jaren]]*12,Gegevens[[#This Row],[Aanvankelijke waarde]]-Gegevens[[#This Row],[Aanbetaling]]),0),0)","v":{"v":634.0645858686797,"d":"€ 634.06"}},{"v":200,"d":"€ 200.00"},{"$f":"IFERROR(Gegevens[[#This Row],[Maandelijkse bedrijfskosten]]+Gegevens[[#This Row],[Maandelijkse betaling]],\"\")","v":{"v":834.0645858686797,"d":"€ 834.06"}},{"v":20000,"d":"€ 20,000.00"},{"$f":"IFERROR(IF(Gegevens[[#This Row],[Aanvankelijke waarde]]>0,SLN(Gegevens[[#This Row],[Aanvankelijke waarde]],Gegevens[[#This Row],[Verwachte waarde aan eind van leentermijn]],Gegevens[[#This Row],[Resterende levensduur ]]),0),0)","v":{"v":2000,"d":"€ 2,000.00"}},{"$f":"IFERROR(Gegevens[[#This Row],[Jaarlijkse vaste afschrijving]]/12,0)","v":{"v":166.66666666666666,"d":"€ 166.67"}},{"$f":"IFERROR(Gegevens[[#This Row],[Aanvankelijke waarde]]-(Gegevens[[#This Row],[Jaarlijkse vaste afschrijving]]*((TODAY()-Gegevens[[#This Row],[Datum gekocht of geleased]])/365)),0)","v":{"v":25013.698630136987,"d":"€ 25,013.70"}}]
[null,456,"Versie Model","Hoofdfiliaal","Uitstekend","lokaal",3,{"v":5000,"d":"€ 5,000.00"},{"v":5000,"d":"€ 5,000.00"},{"$f":"DATE(YEAR(TODAY())-1, 1,1)","v":"2017-01-01"},null,null,{"$f":"IFERROR(IF(AND(Gegevens[[#This Row],[Aanvankelijke waarde]]>0,Gegevens[[#This Row],[Aanvankelijke waarde]]<>Gegevens[[#This Row],[Aanbetaling]]),-1*PMT(Gegevens[[#This Row],[Leningstarief]]/12,Gegevens[[#This Row],[Leentermijn \nin jaren]]*12,Gegevens[[#This Row],[Aanvankelijke waarde]]-Gegevens[[#This Row],[Aanbetaling]]),0),0)","v":{"v":0,"d":"€ 0.00"}},{"v":20,"d":"€ 20.00"},{"$f":"IFERROR(Gegevens[[#This Row],[Maandelijkse bedrijfskosten]]+Gegevens[[#This Row],[Maandelijkse betaling]],\"\")","v":{"v":20,"d":"€ 20.00"}},null,{"$f":"IFERROR(IF(Gegevens[[#This Row],[Aanvankelijke waarde]]>0,SLN(Gegevens[[#This Row],[Aanvankelijke waarde]],Gegevens[[#This Row],[Verwachte waarde aan eind van leentermijn]],Gegevens[[#This Row],[Resterende levensduur ]]),0),0)","v":{"v":1666.6666666666667,"d":"€ 1,666.67"}},{"$f":"IFERROR(Gegevens[[#This Row],[Jaarlijkse vaste afschrijving]]/12,0)","v":{"v":138.88888888888889,"d":"€ 138.89"}},{"$f":"IFERROR(Gegevens[[#This Row],[Aanvankelijke waarde]]-(Gegevens[[#This Row],[Jaarlijkse vaste afschrijving]]*((TODAY()-Gegevens[[#This Row],[Datum gekocht of geleased]])/365)),0)","v":{"v":2515.981735159817,"d":"€ 2,515.98"}}]
[null,789,"Versie Model","Oostkust","Redelijk","lokaal",6,{"v":50000,"d":"€ 50,000.00"},{"v":20000,"d":"€ 20,000.00"},{"$f":"TODAY()","v":"2018-06-29"},5,{"v":0.05,"d":"5.00%"},{"$f":"IFERROR(IF(AND(Gegevens[[#This Row],[Aanvankelijke waarde]]>0,Gegevens[[#This Row],[Aanvankelijke waarde]]<>Gegevens[[#This Row],[Aanbetaling]]),-1*PMT(Gegevens[[#This Row],[Leningstarief]]/12,Gegevens[[#This Row],[Leentermijn \nin jaren]]*12,Gegevens[[#This Row],[Aanvankelijke waarde]]-Gegevens[[#This Row],[Aanbetaling]]),0),0)","v":{"v":566.137009320328,"d":"€ 566.14"}},{"v":40,"d":"€ 40.00"},{"$f":"IFERROR(Gegevens[[#This Row],[Maandelijkse bedrijfskosten]]+Gegevens[[#This Row],[Maandelijkse betaling]],\"\")","v":{"v":606.137009320328,"d":"€ 606.14"}},{"v":1500,"d":"€ 1,500.00"},{"$f":"IFERROR(IF(Gegevens[[#This Row],[Aanvankelijke waarde]]>0,SLN(Gegevens[[#This Row],[Aanvankelijke waarde]],Gegevens[[#This Row],[Verwachte waarde aan eind van leentermijn]],Gegevens[[#This Row],[Resterende levensduur ]]),0),0)","v":{"v":8083.333333333333,"d":"€ 8,083.33"}},{"$f":"IFERROR(Gegevens[[#This Row],[Jaarlijkse vaste afschrijving]]/12,0)","v":{"v":673.6111111111111,"d":"€ 673.61"}},{"$f":"IFERROR(Gegevens[[#This Row],[Aanvankelijke waarde]]-(Gegevens[[#This Row],[Jaarlijkse vaste afschrijving]]*((TODAY()-Gegevens[[#This Row],[Datum gekocht of geleased]])/365)),0)","v":{"v":50000,"d":"€ 50,000.00"}}]
[{"$nulls":12},{"$f":"IFERROR(IF(AND(Gegevens[[#This Row],[Aanvankelijke waarde]]>0,Gegevens[[#This Row],[Aanvankelijke waarde]]<>Gegevens[[#This Row],[Aanbetaling]]),-1*PMT(Gegevens[[#This Row],[Leningstarief]]/12,Gegevens[[#This Row],[Leentermijn \nin jaren]]*12,Gegevens[[#This Row],[Aanvankelijke waarde]]-Gegevens[[#This Row],[Aanbetaling]]),0),0)","v":{"v":0,"d":"€ 0.00"}},null,{"$f":"IFERROR(Gegevens[[#This Row],[Maandelijkse bedrijfskosten]]+Gegevens[[#This Row],[Maandelijkse betaling]],\"\")","v":{"v":0,"d":"€ 0.00"}},null,{"$f":"IFERROR(IF(Gegevens[[#This Row],[Aanvankelijke waarde]]>0,SLN(Gegevens[[#This Row],[Aanvankelijke waarde]],Gegevens[[#This Row],[Verwachte waarde aan eind van leentermijn]],Gegevens[[#This Row],[Resterende levensduur ]]),0),0)","v":{"v":0,"d":"€ 0.00"}},{"$f":"IFERROR(Gegevens[[#This Row],[Jaarlijkse vaste afschrijving]]/12,0)","v":{"v":0,"d":"€ 0.00"}},{"$f":"IFERROR(Gegevens[[#This Row],[Aanvankelijke waarde]]-(Gegevens[[#This Row],[Jaarlijkse vaste afschrijving]]*((TODAY()-Gegevens[[#This Row],[Datum gekocht of geleased]])/365)),0)","v":{"v":0,"d":"€ 0.00"}}]
[{"$nulls":12},{"$f":"IFERROR(IF(AND(Gegevens[[#This Row],[Aanvankelijke waarde]]>0,Gegevens[[#This Row],[Aanvankelijke waarde]]<>Gegevens[[#This Row],[Aanbetaling]]),-1*PMT(Gegevens[[#This Row],[Leningstarief]]/12,Gegevens[[#This Row],[Leentermijn \nin jaren]]*12,Gegevens[[#This Row],[Aanvankelijke waarde]]-Gegevens[[#This Row],[Aanbetaling]]),0),0)","v":{"v":0,"d":"€ 0.00"}},null,{"$f":"IFERROR(Gegevens[[#This Row],[Maandelijkse bedrijfskosten]]+Gegevens[[#This Row],[Maandelijkse betaling]],\"\")","v":{"v":0,"d":"€ 0.00"}},null,{"$f":"IFERROR(IF(Gegevens[[#This Row],[Aanvankelijke waarde]]>0,SLN(Gegevens[[#This Row],[Aanvankelijke waarde]],Gegevens[[#This Row],[Verwachte waarde aan eind van leentermijn]],Gegevens[[#This Row],[Resterende levensduur ]]),0),0)","v":{"v":0,"d":"€ 0.00"}},{"$f":"IFERROR(Gegevens[[#This Row],[Jaarlijkse vaste afschrijving]]/12,0)","v":{"v":0,"d":"€ 0.00"}},{"$f":"IFERROR(Gegevens[[#This Row],[Aanvankelijke waarde]]-(Gegevens[[#This Row],[Jaarlijkse vaste afschrijving]]*((TODAY()-Gegevens[[#This Row],[Datum gekocht of geleased]])/365)),0)","v":{"v":0,"d":"€ 0.00"}}]